bitfinex/quotes_SOLUSD_20220118
["timestamp","ask_amount","ask_price","bid_price","bid_amount"]
[1642492814755,11.05249933,140.24,140.23,0.38902993]
[1642492817157,29.37997007,140.23,140.17,10.6979]
[1642492817359,38.23297007,140.23,140.16,10.6993]
[1642492817762,38.23297007,140.23,140.12,58.4165]
[1642492817959,22.8149,140.22,140.09,20.0605565]
[1642492818259,34.18790817,140.21,140.11,10.7032]
[1642492818458,34.18790817,140.21,140.08,35.6757]
[1642492818459,10.7036,140.19,140.08,35.6757]
[1642492818660,4.35753049,140.17,140.08,35.6757]
[1642492818859,2.854,140.16,140.08,35.6757]
[1642492819660,2.854,140.16,140.06,47.37477479]
[1642492819863,0.25,140.15,140.02,22.5261]
[1642492820060,2.855,140.14,140.01,532.25054876]
[1642492820265,24.3805,140.13,140.01,532.25054876]
[1642492820461,34.18990817,140.12,140.01,464.38982982]
[1642492820763,0.25,140.11,140.03,10.7087]
[1642492820961,2.855,140.1,140.03,10.7087]
[1642492821661,4.35753049,140.09,140.03,10.7087]
[1642492822163,4.35753049,140.09,140.07,2.00506505]
[1642492822362,5.05249933,140.08,140.07,2.00506505]
[1642492822765,5.05249933,140.08,140.07,0.18070996]
[1642492822963,5.05249933,140.08,140.03,8.02026022]
[1642492823165,76.05249933,140.08,140.03,8.02026022]
[1642492823563,0.25,140.07,140.03,8.02026022]
[1642492823765,3.106,140.07,140.03,8.02026022]
[1642492823963,25.18972245,140.06,140.03,8.02026022]
[1642492824163,5.05249933,140.05,140.03,8.02026022]
[1642492824365,5.05249933,140.05,140.0,6.01519516]
[1642492824667,3.106,140.04,140.0,3.7911652]
[1642492825266,9.106,140.04,140.0,3.7911652]
[1642492825463,2.73280199,140.03,140.0,2.75545929]
[1642492825865,3.28219997,140.02,140.0,0.63901676]
[1642492826064,2.02029936,140.01,140.0,0.63901676]
[1642492826263,8.02029936,140.01,139.96,10.7145]
[1642492826964,21.39855725,140.0,139.94,10.7156]
[1642492827766,21.39855725,140.0,139.89,71.302]
[1642492827767,27.39855725,140.0,139.89,71.302]
[1642492827965,0.25,139.99,139.92,10.717]
[1642492828167,3.108,139.99,139.92,10.717]
[1642492828366,9.108,139.99,139.92,10.717]
[1642492828769,19.8266,139.99,139.89,35.58]
[1642492829067,19.8266,139.99,139.88,46.3001]
[1642492829269,24.8457,139.98,139.88,10.7201]
[1642492829568,2.858,139.97,139.88,10.7201]
[1642492829768,2.73280199,139.96,139.81,18.24004142]
[1642492829967,2.859,139.95,139.81,7.45664142]
[1642492830169,3.109,139.95,139.81,24.5621051]
[1642492830371,9.109,139.95,139.81,24.5621051]
[1642492830568,8.859,139.95,139.87,10.7215]
[1642492831470,0.25,139.94,139.87,10.7215]
[1642492833574,2.859,139.93,139.87,10.7215]
[1642492833774,21.18480049,139.92,139.87,10.7215]
[1642492834174,27.18480049,139.92,139.87,10.7215]
[1642492835177,21.18480049,139.92,139.87,10.7215]
[1642492836276,21.18480049,139.92,139.86,10.7223]
[1642492836277,0.25,139.91,139.86,10.7223]
[1642492836479,2.859,139.9,139.77,55.9749988]
[1642492836679,2.859,139.9,139.75,35.11216368]
[1642492836878,58.8593,139.89,139.84,8.14358734]
[1642492837079,15.42045833,139.87,139.84,4.4601729]
[1642492837279,8.16249933,139.86,139.84,0.17736252]
[1642492837680,14.16249933,139.86,139.84,0.17736252]
[1642492839481,24.89059933,139.86,139.84,0.17736252]
[1642492841612,24.64059933,139.86,139.84,0.17736252]
[1642492841810,7.91249933,139.86,139.84,0.17736252]
[1642492842009,7.91249933,139.86,139.78,0.25]
[1642492842210,5.05249933,139.86,139.78,0.25]
[1642492842411,5.05249933,139.86,139.77,0.26]
[1642492842412,5.05249933,139.86,139.77,0.51]
[1642492842611,5.05249933,139.86,139.77,0.25]
[1642492843215,5.05249933,139.86,139.8,10.7262]
[1642492843412,5.05249933,139.86,139.81,0.25]
[1642492843613,5.05249933,139.86,139.81,5.617]
[1642492843812,2.86,139.94,139.82,0.25]
[1642492844014,48.0849,139.95,139.82,1.64025683]
[1642492844214,48.0849,139.95,139.82,0.25]
[1642492844416,48.0849,139.95,139.85,10.7201]
[1642492844614,13.73789861,139.94,139.85,10.7201]
[1642492844814,48.0849,139.95,139.86,46.70715882]
[1642492846115,54.0849,139.95,139.86,46.70715882]
[1642492846517,48.0849,139.95,139.88,10.7194]
[1642492846917,0.25,139.94,139.89,0.25]
[1642492847117,3.108,139.94,139.89,0.25]
[1642492847315,9.108,139.94,139.89,0.25]
[1642492847715,3.95976332,139.93,139.89,0.25]
[1642492848016,9.108,139.94,139.89,0.25]
[1642492848321,9.108,139.94,139.86,0.25]
[1642492848516,9.108,139.94,139.87,10.7213]
[1642492848919,9.108,139.94,139.88,0.25]
[1642492849121,22.39528103,139.94,139.88,0.25]
[1642492850519,9.108,139.94,139.88,0.25]
[1642492851122,9.108,139.94,139.88,10.9703]
[1642492851323,9.108,139.94,139.89,0.25]
[1642492852322,6.25,139.94,139.89,0.25]
[1642492852523,6.25,139.94,139.86,0.25]
[1642492852723,3.109,139.94,139.89,10.7197]
[1642492852923,9.109,139.94,139.89,10.7197]
[1642492854524,9.109,139.94,139.9,2.03580633]
[1642492855826,6.25,139.94,139.9,2.03580633]
[1642492856027,0.25,139.94,139.9,2.03580633]
[1642492856226,6.25,139.94,139.9,2.03580633]
[1642492856526,2.858,139.95,139.9,12.75470633]
[1642492856727,2.858,139.99,139.91,0.25]
[1642492856925,24.8451,140.0,139.91,0.25]
[1642492857126,2.858,140.01,139.91,0.25]
[1642492857329,1.22878103,140.02,139.91,0.25]
[1642492857530,15.20092065,140.01,139.91,43.63264508]
[1642492857928,15.20092065,140.01,139.91,43.89264508]
[1642492858330,21.20092065,140.01,139.91,0.25]
[1642492858732,21.20092065,140.01,139.9,2.03580633]
[1642492858733,2.857,140.0,139.9,2.03580633]
[1642492859158,8.857,140.0,139.9,2.03580633]
[1642492859560,6.0,140.0,139.9,2.03580633]
[1642492859760,24.05892065,140.01,139.9,2.29580633]
[1642492860166,24.05892065,140.01,139.91,0.25]
[1642492860561,24.05892065,140.01,139.91,39.75611853]
[1642492860762,24.05892065,140.01,139.91,40.01611853]
[1642492861362,0.25,140.0,139.91,40.01611853]
[1642492861561,2.858,139.99,139.91,40.01611853]
[1642492861961,21.20092065,140.01,139.91,40.01611853]
[1642492861962,2.858,140.01,139.91,47.40513541]
[1642492862164,79.3316,140.04,139.91,54.03713541]
[1642492862362,2.857,140.04,139.92,71.48]
[1642492862762,2.857,140.04,139.93,0.25]
[1642492862963,2.857,140.04,139.93,1.63777674]
[1642492863165,2.857,140.07,139.93,1.63777674]
[1642492863364,2.857,140.08,139.94,1.38777674]
[1642492863564,2.856,140.1,139.94,78.42377674]
[1642492863765,2.856,140.13,139.95,5.25]
[1642492863965,14.76830412,140.12,139.96,72.07487517]
[1642492864164,14.76830412,140.12,139.96,73.46265191]
[1642492864366,14.76830412,140.12,139.97,0.25]
[1642492864666,8.856,140.13,139.99,71.48]
[1642492864866,8.856,140.13,140.0,0.25]
[1642492865166,8.856,140.13,140.0,1.63777674]
[1642492865366,8.856,140.13,140.0,7.89777674]
[1642492865367,2.856,140.13,140.0,7.89777674]
[1642492865767,2.856,140.13,140.01,45.71443355]
[1642492866169,0.39875965,140.12,140.02,0.25]
[1642492866370,2.855,140.11,140.02,0.25]
[1642492866567,2.855,140.13,140.02,0.25]
[1642492866767,8.855,140.13,140.02,0.25]
[1642492866967,2.855,140.13,140.02,0.25]
[1642492867168,8.855,140.13,140.02,0.25]
[1642492867368,15.7892782,140.12,140.02,0.25]
[1642492867567,1.97610626,140.12,140.03,2.03383882]
[1642492867768,7.97610626,140.12,140.04,0.25]
[1642492867971,1.97610626,140.12,140.04,0.25]
[1642492868570,1.97610626,140.12,140.04,39.22834345]
[1642492868771,1.97610626,140.12,140.04,118.35384532]
[1642492869370,1.97610626,140.12,140.04,6.51]
[1642492869570,1.97610626,140.12,140.04,0.51]
[1642492869770,1.97610626,140.12,140.04,0.25]
[1642492870471,15.67353565,140.11,140.04,0.25]
[1642492870876,0.25,140.1,140.04,0.25]
[1642492871172,2.855,140.09,140.04,0.25]
[1642492871373,8.855,140.09,140.04,0.25]
[1642492871771,0.49159877,140.08,140.04,0.25]
[1642492872070,2.855,140.07,140.04,0.25]
[1642492872271,5.05249933,140.06,140.04,0.25]
[1642492872770,3.34759877,140.08,140.05,1.01190061]
[1642492873171,2.856,140.08,140.05,1.01190061]
[1642492873773,2.856,140.08,140.06,0.25]
[1642492873971,6.0,140.09,140.06,0.25]
[1642492874373,2.855,140.1,140.07,1.01190061]
[1642492874771,8.855,140.1,140.07,1.01190061]
[1642492875372,2.855,140.12,140.07,1.01190061]
[1642492875573,3.105,140.13,140.07,1.01190061]
[1642492875775,8.855,140.13,140.07,1.01190061]
[1642492876173,23.08873872,140.13,140.07,1.01190061]
[1642492876573,8.855,140.13,140.07,1.01190061]
[1642492876776,1.15796901,140.15,140.08,0.25]
[1642492876976,95.1388,140.18,140.08,0.25]
[1642492876977,2.854,140.22,140.08,0.25]
[1642492877174,2.854,140.22,140.08,78.794]
[1642492877474,17.05017254,140.22,140.1,35.21109383]
[1642492877674,2.854,140.22,140.1,35.21109383]
[1642492877874,2.854,140.22,140.11,0.25]
[1642492878075,2.853,140.25,140.11,76.999]
[1642492878274,2.853,140.25,140.12,1.38123931]
[1642492878676,14.26895894,140.25,140.13,43.21546871]
[1642492879079,20.26895894,140.25,140.13,43.21546871]
[1642492879278,0.25,140.24,140.13,49.47546871]
[1642492879475,2.853,140.23,140.13,43.47546871]
[1642492879876,2.853,140.25,140.14,72.86123931]
[1642492880076,2.853,140.26,140.14,80.10223931]
[1642492880377,2.853,140.28,140.15,1.63123931]
[1642492880577,2.852,140.29,140.16,43.75432972]
[1642492880876,2.852,140.3,140.17,0.25]
[1642492881576,8.852,140.3,140.17,0.25]
[1642492882176,2.852,140.3,140.17,0.25]
[1642492882376,2.852,140.3,140.17,1.62649377]
[1642492882576,2.852,140.34,140.17,1.62649377]
[1642492882777,2.852,140.34,140.17,19.66723523]
[1642492883381,2.852,140.34,140.18,71.48]
[1642492883581,2.56135161,140.33,140.2,71.48]
[1642492883783,2.851,140.32,140.21,0.25]
[1642492884788,2.851,140.34,140.21,0.25]
[1642492884988,3.101,140.34,140.21,0.25]
[1642492885190,2.851,140.34,140.21,0.25]
[1642492885416,2.851,140.34,140.22,1.37649377]
[1642492885719,2.851,140.34,140.23,37.05397677]
[1642492885919,80.8278,140.35,140.23,37.30397677]
[1642492886116,86.8278,140.35,140.23,43.56397677]
[1642492887116,86.8278,140.35,140.24,71.48]
[1642492887315,86.8278,140.35,140.25,0.25]
[1642492888516,83.9768,140.35,140.25,0.25]
[1642492888816,77.9768,140.35,140.25,0.25]
[1642492889917,77.9768,140.35,140.28,10.6873]
[1642492890121,2.851,140.38,140.28,48.07691568]
[1642492890318,8.851,140.38,140.29,0.25]
[1642492890618,2.851,140.38,140.29,0.25]
[1642492890817,8.851,140.38,140.29,0.25]
[1642492891618,8.851,140.38,140.31,10.6872]
[1642492891817,6.0,140.38,140.32,0.25]
[1642492892221,2.85,140.37,140.32,0.25]
[1642492892419,2.85,140.38,140.32,0.25]
[1642492892618,6.0,140.37,140.32,0.25]
[1642492892818,6.0,140.37,140.28,0.25]
[1642492893019,6.0,140.37,140.3,35.6164]
[1642492893220,8.85,140.38,140.3,77.03629415]
[1642492893423,24.87379039,140.39,140.31,0.25]
[1642492893620,6.0,140.38,140.31,0.25]
[1642492893821,18.87379039,140.39,140.31,0.25]
[1642492894520,18.87379039,140.39,140.33,10.6854]
[1642492895122,24.87379039,140.39,140.33,10.6854]
[1642492895825,24.87379039,140.39,140.34,0.25]
[1642492896521,24.87379039,140.39,140.31,10.6869]
[1642492896722,2.03905272,140.38,140.22,1.37649377]
[1642492896924,50.1315,140.37,140.21,22.43114146]
[1642492897125,51.92055272,140.37,140.22,40.06703046]
[1642492897327,0.25,140.36,140.22,40.06703046]
[1642492897625,2.851,140.35,140.22,111.54703046]
[1642492897924,0.25,140.34,140.22,40.06703046]
[1642492898523,0.25,140.34,140.26,10.6903]
[1642492898724,8.851,140.35,140.27,0.25]
[1642492899828,6.0,140.35,140.27,0.25]
[1642492900026,6.0,140.35,140.28,10.6896]
[1642492900227,8.85,140.36,140.28,10.6896]
[1642492900425,8.85,140.36,140.29,0.25]
[1642492900626,6.0,140.36,140.27,0.25]
[1642492900826,56.1305,140.37,140.27,0.25]
[1642492901026,0.25,140.36,140.27,0.25]
[1642492902128,0.25,140.36,140.29,10.6888]
[1642492902330,0.25,140.36,140.3,0.25]
[1642492903529,0.25,140.36,140.3,10.6879]
[1642492903928,0.25,140.36,140.31,0.25]
[1642492904329,56.1305,140.37,140.31,0.25]
[1642492904528,0.25,140.36,140.31,0.25]
[1642492905129,66.8194,140.37,140.29,0.25]
[1642492905428,47.2805,140.37,140.29,0.25]
[1642492906429,47.2805,140.37,140.29,42.90880713]
[1642492906631,47.2805,140.37,140.29,53.34740713]
[1642492906830,47.2805,140.37,140.3,0.25]
[1642492908430,53.2805,140.37,140.3,0.25]
[1642492908632,47.2805,140.37,140.32,10.6858]
[1642492908830,3.20784833,140.4,140.33,0.25]
[1642492909531,9.20784833,140.4,140.33,0.25]
[1642492910331,9.20784833,140.4,140.33,10.9355]
[1642492910731,9.20784833,140.4,140.33,11.1955]
[1642492911131,6.35784833,140.4,140.33,11.1955]
[1642492911330,0.35784833,140.4,140.33,10.9355]
[1642492911530,6.35784833,140.4,140.33,10.9355]
[1642492912531,11.03623276,140.4,140.33,10.9355]
[1642492912832,11.03623276,140.4,140.33,0.25]
[1642492913030,13.88523276,140.4,140.33,0.25]
[1642492913232,13.88523276,140.4,140.32,0.25]
[1642492913634,13.88523276,140.4,140.29,0.25]
[1642492913831,13.88523276,140.4,140.28,0.26]
[1642492914234,24.0413,140.39,140.27,114.87485333]
[1642492914431,34.7291,140.39,140.29,10.6882]
[1642492914632,40.7291,140.39,140.29,10.6882]
[1642492914832,40.7291,140.39,140.3,0.25]
[1642492915334,42.74607192,140.39,140.3,0.25]
[1642492915938,42.74607192,140.39,140.28,0.25]
[1642492916134,2.85,140.38,140.28,0.25]
[1642492916338,11.48674999,140.37,140.28,0.25]
[1642492916535,8.85,140.38,140.3,10.688]
[1642492916735,6.0,140.37,140.3,10.688]
[1642492916938,0.25,140.37,140.24,1.37310118]
[1642492917135,2.85,140.36,140.24,1.37310118]
[1642492917336,0.25,140.35,140.21,10.6504]
[1642492917537,2.851,140.34,140.18,42.30175346]
[1642492917735,3.88671678,140.32,140.18,42.30175346]
[1642492917938,2.851,140.31,140.18,52.86165346]
[1642492918136,3.101,140.31,140.18,42.30175346]
[1642492918335,9.101,140.31,140.18,42.30175346]
[1642492918536,9.101,140.31,140.23,10.6928]
[1642492919541,9.101,140.31,140.24,10.9423]
[1642492919738,9.101,140.31,140.24,10.6923]
[1642492919938,9.101,140.31,140.25,0.25]
[1642492920138,9.101,140.31,140.24,10.6923]
[1642492920738,8.851,140.31,140.24,10.6923]
[1642492921539,8.851,140.31,140.25,0.25]
[1642492921941,0.25,140.3,140.24,10.6923]
[1642492922142,6.075,140.3,140.18,35.6461]
[1642492922441,2.851,140.29,140.11,23.1097]
[1642492922641,4.64005272,140.29,140.12,22.7274]
[1642492922840,12.04400229,140.28,140.15,49.01733798]
[1642492923043,10.6972,140.26,140.15,5.80191163]
[1642492923242,2.852,140.25,140.15,5.80191163]
[1642492923440,3.102,140.25,140.15,5.80191163]
[1642492923640,10.89105272,140.25,140.15,5.80191163]
[1642492923841,1.78905272,140.24,140.15,5.80191163]
[1642492924041,10.7013,140.21,140.15,5.80191163]
[1642492924242,11.79400229,140.21,140.15,5.80191163]
[1642492924443,6.0,140.21,140.15,5.80191163]
[1642492925143,8.853,140.24,140.15,5.80191163]
[1642492925346,12.0771786,140.23,140.15,5.80191163]
[1642492925546,2.853,140.22,140.15,5.80191163]
[1642492925744,13.5534,140.22,140.15,5.80191163]
[1642492925944,0.25,140.21,140.15,5.80191163]
[1642492926947,8.853,140.22,140.16,0.25]
[1642492927148,6.0,140.22,140.16,0.25]
[1642492927347,6.0,140.23,140.16,0.25]
[1642492927547,22.8359,140.25,140.16,0.25]
[1642492928047,38.59428919,140.25,140.16,10.9484]
[1642492928247,38.59428919,140.25,140.16,11.2084]
[1642492929247,0.25,140.24,140.16,10.9484]
[1642492929447,0.25,140.24,140.16,10.6984]
[1642492929648,1.78905272,140.23,140.16,10.6984]
[1642492929848,3.103,140.22,140.15,5.80191163]
[1642492930048,0.25,140.22,140.15,5.80191163]
[1642492930248,0.40674523,140.21,140.15,5.80191163]
[1642492931152,2.853,140.2,140.15,5.80191163]
[1642492931354,0.25,140.19,140.15,5.80191163]
[1642492931550,0.25,140.19,140.08,35.6719]
[1642492931551,2.853,140.18,140.08,35.6719]
[1642492931751,2.853,140.18,140.1,0.25]
[1642492931950,8.853,140.18,140.1,0.25]
[1642492932150,8.853,140.18,140.1,10.9528]
[1642492932551,20.37966099,140.18,140.1,10.9528]
[1642492933051,17.52666099,140.18,140.1,10.9528]
[1642492933851,6.0,140.18,140.1,11.2128]
[1642492934082,2.854,140.21,140.1,11.2128]
[1642492934250,78.7817,140.24,140.14,10.6956]
[1642492934453,2.853,140.3,140.14,10.6956]
[1642492934653,10.6956,140.29,140.15,0.25]
[1642492934852,6.0,140.29,140.19,45.88595948]
[1642492935050,6.0,140.29,140.19,52.45795948]
[1642492935251,6.0,140.29,140.2,0.25]
[1642492935651,12.46819274,140.3,140.2,0.25]
[1642492936659,12.46819274,140.3,140.22,10.6912]
[1642492936852,18.46819274,140.3,140.23,0.25]
[1642492937555,6.0,140.3,140.23,0.25]
[1642492937756,6.0,140.3,140.25,10.6918]
[1642492937955,85.26973172,140.32,140.25,10.6918]
[1642492938154,7.17423172,140.32,140.26,0.25]
[1642492939058,18.74836308,140.32,140.26,0.25]
[1642492939259,7.17423172,140.32,140.25,0.25]
[1642492939658,7.17423172,140.32,140.26,10.6909]
[1642492939960,7.17423172,140.32,140.27,0.25]
[1642492940461,7.17423172,140.32,140.14,12.72924535]
[1642492940660,7.17423172,140.32,140.15,11.78069757]
[1642492940661,3.102,140.31,140.15,11.78069757]
[1642492940863,3.102,140.31,140.12,7.44459781]
[1642492940864,33.229,140.31,140.12,7.44459781]
[1642492941363,13.22193897,140.3,140.13,40.69566549]
[1642492941585,2.94319545,140.26,140.18,10.6966]
[1642492941787,3.102,140.25,140.13,40.69566549]
[1642492941986,11.637,140.25,140.15,0.25]
[1642492942186,65.0464,140.25,140.15,0.25]
[1642492942586,65.0464,140.25,140.09,0.26]
[1642492942787,10.6988,140.24,140.12,10.7011]
[1642492943087,87.55493897,140.23,140.07,4.01743717]
[1642492943288,90.70193897,140.23,140.07,4.01743717]
[1642492943489,3.104,140.22,140.07,4.01743717]
[1642492943687,9.55,140.22,140.07,4.01743717]
[1642492943987,9.55,140.22,140.04,43.42389412]
[1642492943988,10.704,140.19,140.04,43.42389412]
[1642492944287,3.104,140.18,140.04,39.70113717]
[1642492944687,9.104,140.18,140.04,39.70113717]
[1642492944987,12.04719545,140.18,140.05,45.31984898]
[1642492945187,12.04719545,140.18,140.08,44.31695441]
[1642492945386,9.19319545,140.18,140.09,0.25]
[1642492945587,6.25,140.18,140.09,0.25]
[1642492945789,8.854,140.19,140.09,0.25]
[1642492946089,22.9243,140.21,140.09,0.25]
[1642492946090,2.854,140.2,140.09,0.25]
[1642492946287,6.0,140.19,140.09,0.25]
[1642492946687,10.08878019,140.19,140.11,48.15954554]
[1642492946889,10.08878019,140.19,140.12,0.25]
[1642492947090,10.08878019,140.19,140.09,35.9191]
[1642492947091,10.08878019,140.19,140.09,35.6691]
[1642492947288,10.08878019,140.19,140.11,0.25]
[1642492947488,0.25,140.18,140.05,4.01743717]
[1642492947688,13.8073,140.18,140.08,10.7033]
[1642492947887,19.8073,140.18,140.08,10.7033]
[1642492948089,19.8073,140.18,140.05,35.681]
[1642492948289,26.9783,140.18,140.04,40.21527888]
[1642492948790,26.9783,140.18,140.05,0.25]
[1642492948988,26.9783,140.18,140.04,40.47527888]
[1642492949189,26.9783,140.18,140.04,0.26]
[1642492949489,28.76735272,140.18,140.04,10.7074]
[1642492950090,28.76735272,140.18,140.01,39.70863717]
[1642492950293,51.87775272,140.18,140.02,43.60410224]
[1642492950692,51.87775272,140.18,140.03,0.25]
[1642492950892,51.87775272,140.18,140.03,10.9581]
[1642492951793,71.48,140.17,140.03,10.9581]
[1642492951996,10.707,140.14,140.03,10.9581]
[1642492952293,16.707,140.14,140.03,11.2181]
[1642492952694,16.707,140.14,140.03,10.9581]
[1642492953098,4.08878019,140.13,140.03,10.9581]
[1642492953296,10.7085,140.12,140.03,10.9581]
[1642492953498,10.33878019,140.13,140.03,10.9581]
[1642492953499,2.855,140.11,140.03,10.9581]
[1642492953700,6.615,140.11,140.03,10.9581]
[1642492953898,0.25,140.1,140.03,10.9581]
[1642492956204,6.0,140.11,140.03,10.9581]
[1642492956400,8.855,140.13,140.03,10.9581]
[1642492956600,6.0,140.13,140.03,12.59071958]
[1642492956802,6.0,140.16,140.03,84.07071958]
[1642492957002,0.25,140.15,140.03,95.85141715]
[1642492957203,6.0,140.16,140.03,101.85141715]
[1642492957602,84.5558,140.17,140.03,101.85141715]
[1642492957802,84.5558,140.17,140.04,3.68796212]
[1642492958003,84.5558,140.17,140.04,75.16796212]
[1642492958203,95.2605,140.17,140.07,10.7043]
[1642492958402,95.2605,140.17,140.08,44.71085807]
[1642492958604,89.2605,140.17,140.08,44.71085807]
[1642492959506,89.2605,140.17,140.08,55.41515807]
[1642492959908,0.25,140.16,140.08,55.41515807]
[1642492960944,10.9549,140.16,140.08,10.9543]
[1642492961144,10.9549,140.16,140.08,0.25]
[1642492961347,16.9549,140.16,140.06,0.25]
[1642492961545,19.8089,140.16,140.06,0.25]
[1642492962543,19.8089,140.16,140.07,10.7054]
[1642492962742,19.8089,140.16,140.04,4.01743717]
[1642492962946,28.0459,140.16,140.04,4.01743717]
[1642492963344,29.83495272,140.16,140.04,4.01743717]
[1642492964547,29.83495272,140.16,140.03,10.7085]
[1642492966249,71.48,140.15,140.03,10.7085]
[1642492966449,10.7092,140.12,140.03,10.7085]
[1642492966651,74.335,140.11,140.03,10.7085]
[1642492966848,80.585,140.11,140.03,10.7085]
[1642492967048,77.73,140.11,140.03,10.7085]
[1642492967750,77.73,140.11,140.04,0.25]
[1642492968650,88.4392,140.11,140.04,0.25]
[1642492968850,16.9592,140.11,140.04,0.25]
[1642492969051,6.25,140.11,140.04,0.25]
[1642492969255,8.855,140.13,140.04,0.25]
[1642492969451,6.0,140.11,140.04,0.25]
[1642492969652,10.7079,140.12,140.04,10.9575]
[1642492969852,16.7079,140.12,140.04,10.9575]
[1642492970053,6.0,140.12,140.04,10.9575]
[1642492970451,8.855,140.14,140.04,10.9575]
[1642492970654,0.25,140.13,140.04,10.9575]
[1642492971651,10.9575,140.13,140.04,10.9575]
[1642492971854,16.9575,140.13,140.04,10.9575]
[1642492972452,16.7075,140.13,140.04,10.9575]
[1642492972653,6.0,140.13,140.04,10.9575]
[1642492972853,47.0259,140.15,140.04,12.59059613]
[1642492973053,47.0259,140.15,140.04,25.99859613]
[1642492973252,3.95183711,140.17,140.04,97.47859613]
[1642492973654,9.95183711,140.17,140.04,109.2592937]
[1642492974554,6.0,140.17,140.05,7.79715725]
[1642492974755,6.0,140.17,140.08,10.7013]
[1642492974956,32.19868007,140.2,140.08,10.7013]
[1642492975156,32.19868007,140.2,140.09,0.25]
[1642492975357,14.33705266,140.19,140.09,38.03167507]
[1642492975556,2.854,140.18,140.09,38.03167507]
[1642492975757,9.104,140.18,140.06,4.01743717]
[1642492976156,9.104,140.18,140.06,4.27743717]
[1642492976558,19.808,140.18,140.09,10.7035]
[1642492976758,19.808,140.18,140.1,35.22599963]
[1642492977258,19.808,140.18,140.06,0.26]
[1642492977459,19.808,140.18,140.05,0.25]
[1642492977759,19.808,140.18,140.06,10.7057]
[1642492978360,11.59139604,140.17,140.07,0.25]
[1642492978565,10.7069,140.14,140.05,4.01743717]
[1642492978762,3.105,140.13,140.05,4.01743717]
[1642492979193,3.105,140.13,140.03,4.01743717]
[1642492979194,9.105,140.13,140.03,4.01743717]
[1642492979395,10.89405272,140.13,140.03,4.01743717]
[1642492979598,4.57373838,140.12,140.03,4.01743717]
[1642492979794,3.105,140.11,140.03,4.01743717]
[1642492980194,9.105,140.11,140.03,4.01743717]
[1642492980395,15.904,140.11,140.03,4.01743717]
[1642492980593,15.904,140.11,139.99,42.06909564]
[1642492980594,98.0941,140.11,140.01,10.7101]
[1642492980794,26.6141,140.11,140.02,0.25]
[1642492981194,26.6141,140.11,140.02,36.10799011]
[1642492981396,8.855,140.11,140.02,36.10799011]
[1642492981596,6.0,140.11,140.02,36.10799011]
[1642492981794,6.0,140.14,140.02,36.10799011]
[1642492981996,43.9106,140.15,140.02,47.07729011]
[1642492982394,14.17092516,140.14,140.02,46.81729011]
[1642492982595,2.855,140.13,140.02,46.81729011]
[1642492982796,2.855,140.13,140.02,10.9593]
[1642492982797,9.105,140.13,140.02,10.9593]
[1642492983196,19.8127,140.13,140.02,10.9593]
[1642492984997,1.78905272,140.12,140.02,0.25]
[1642492985199,10.711,140.09,140.01,0.25]
[1642492985398,0.25,140.08,140.01,0.25]
[1642492985899,2.24420926,140.08,140.01,0.25]
[1642492986099,12.95520926,140.08,140.01,0.25]
[1642492986300,18.95520926,140.08,139.99,4.01743717]
[1642492986799,18.95520926,140.08,140.0,0.25]
[1642492986999,18.95520926,140.08,139.99,45.6947763]
[1642492987200,8.24420926,140.08,140.0,10.7107]